bitfinex/quotes_ETHUSD_20250131
["timestamp","ask_amount","ask_price","bid_price","bid_amount"]
[1738342913630,0.55,3403.9,3402.9,4.29374701]
[1738342916983,0.55,3403.9,3402.9,4.30843664]
[1738342917132,0.55,3403.9,3402.9,4.29374701]
[1738342917669,4.30715039,3404.3,3402.9,4.30843664]
[1738342917896,3.76377,3404.6,3403.1,3.0]
[1738342918079,2.93743,3404.4,3403.3,3.0]
[1738342918375,0.55,3404.3,3402.5,3.115]
[1738342919194,0.8265,3404.6,3402.7,3.115]
[1738342919343,2.93708,3404.8,3402.7,3.115]
[1738342919552,3.76347,3404.9,3402.7,3.115]
[1738342919876,0.55,3404.8,3402.9,0.015]
[1738342920375,0.55,3404.8,3403.1,3.0075]
[1738342920584,2.27088656,3405.6,3403.5,0.2]
[1738342920781,2.27088656,3405.6,3403.7,0.0075]
[1738342920782,0.52430611,3405.5,3403.7,0.0075]
[1738342921076,0.8301,3405.6,3403.9,3.0]
[1738342921453,2.9367,3405.2,3403.9,3.0]
[1738342921782,2.93689,3405.0,3403.9,3.0]
[1738342922074,2.93689,3405.0,3403.9,11.76]
[1738342922280,0.55,3404.8,3403.9,11.76]
[1738342922444,0.55,3404.8,3403.9,3.0]
[1738342922645,3.48703,3404.8,3403.6,8.76]
[1738342923394,2.93725,3404.6,3403.7,3.0]
[1738342923589,2.93725,3404.6,3403.6,8.76]
[1738342923823,0.55,3404.4,3403.6,8.76]
[1738342924602,3.48743,3404.4,3403.6,8.76]
[1738342925431,0.55,3404.1,3403.3,3.0]
[1738342925600,0.55,3403.9,3403.3,3.0]
[1738342925803,0.55,3404.1,3403.4,0.01468969]
[1738342926333,0.55,3404.1,3403.3,3.0]
[1738342926537,3.916108,3404.1,3403.3,3.0]
[1738342927251,0.55,3403.9,3403.3,3.0]
[1738342927547,0.978468,3404.1,3403.3,3.0]
[1738342927910,3.916108,3404.1,3403.3,3.0]
[1738342928648,0.55,3403.9,3403.3,3.0]
[1738342928808,3.48782,3403.9,3403.3,3.0]
[1738342929151,0.55,3404.0,3403.3,3.0]
[1738342929451,3.366158,3404.1,3403.3,3.0]
[1738342929452,0.978468,3404.1,3403.3,3.0]
[1738342930021,3.99580848,3404.0,3403.1,8.76]
[1738342930221,3.52449368,3404.0,3403.1,8.76]
[1738342930554,0.55,3403.7,3403.2,3.0]
[1738342930718,0.55,3403.7,3403.1,3.0]
[1738342931442,0.55,3404.1,3403.1,3.0]
[1738342931635,0.55,3404.1,3403.2,0.8496933]
[1738342932028,2.93715,3404.7,3403.2,0.8496933]
[1738342932346,0.7538,3404.8,3403.2,0.8496933]
[1738342932560,0.7538,3404.9,3403.4,3.0]
[1738342932850,2.93703,3404.8,3403.4,3.0]
[1738342933156,3.53389666,3404.8,3403.5,1.7945]
[1738342933350,0.55,3404.7,3403.5,1.7945]
[1738342933556,3.48712,3404.7,3403.5,1.7945]
[1738342933738,0.55,3404.5,3403.4,3.0]
[1738342934324,3.48729,3404.5,3403.4,3.0]
[1738342934558,1.3797,3404.3,3403.4,3.0]
[1738342935718,2.93754,3404.2,3403.4,3.0]
[1738342935926,0.55,3404.1,3403.4,3.0]
[1738342936262,0.55,3403.7,3402.1,0.0075]
[1738342936460,0.55,3403.7,3402.2,14.11]
[1738342936668,0.55,3403.7,3402.3,1.41175]
[1738342937166,1.3491,3403.7,3402.3,1.41175]
[1738342937719,1.3491,3403.7,3402.3,4.41175]
[1738342938071,2.93779,3404.0,3402.4,0.01469329]
[1738342938072,0.7991,3404.0,3402.4,0.01469329]
[1738342938231,0.7991,3404.0,3402.5,1.85364433]
[1738342938570,0.7991,3404.0,3402.6,0.01469329]
[1738342938862,0.55,3403.9,3402.6,0.01469329]
[1738342939561,0.55,3403.9,3402.8,3.0]
[1738342939722,0.55,3403.9,3402.9,8.77469003]
[1738342939917,0.55,3403.9,3403.0,1.177469]
[1738342940162,0.55,3403.9,3403.1,0.01469006]
[1738342941339,0.7662,3404.4,3403.2,1.175555]
[1738342942070,0.7837,3404.7,3403.2,1.175555]
[1738342942240,0.7837,3404.7,3403.4,3.0]
[1738342942580,0.7837,3404.7,3403.5,8.76]
[1738342944464,0.55,3404.6,3403.5,8.76]
[1738342944623,0.7887,3405.0,3403.6,3.0]
[1738342944822,3.48696,3404.9,3403.6,3.0]
[1738342945037,3.48696,3404.9,3403.7,1.176]
[1738342945632,1.12391329,3404.9,3403.7,1.176]
[1738342945856,0.8235,3405.4,3403.8,3.0]
[1738342946060,0.8235,3405.4,3403.7,9.936]
[1738342946061,0.8235,3405.4,3404.0,3.0]
[1738342946368,0.55,3405.3,3404.1,1.711]
[1738342946527,0.8235,3405.4,3404.1,1.711]
[1738342947173,3.52971344,3405.7,3404.3,3.0]
[1738342947174,0.8242,3405.7,3404.3,3.0]
[1738342947766,0.55,3405.6,3404.3,3.0]
[1738342947962,0.8242,3405.7,3404.4,1.8821]
[1738342948143,0.0359145,3405.8,3404.4,1.8821]
[1738342948372,0.55,3405.7,3404.4,1.8821]
[1738342950742,0.0359145,3405.8,3404.4,1.8821]
[1738342950945,0.0359145,3405.8,3404.7,0.0075]
[1738342951281,0.0359145,3405.8,3404.9,3.0]
[1738342954536,0.0359145,3405.8,3405.1,3.0]
[1738342956578,0.55,3405.7,3405.1,3.0]
[1738342957080,0.0359145,3405.8,3405.1,3.0]
[1738342958561,0.55,3405.7,3405.1,3.0]
[1738342958936,0.90219645,3405.7,3405.1,3.0]
[1738342959670,0.55,3405.5,3405.1,3.0]
[1738342959872,0.55,3405.2,3404.0,14.11]
[1738342960030,2.93663,3405.3,3404.1,10.171]
[1738342960238,0.55,3405.2,3404.2,8.76]
[1738342960512,0.55,3404.8,3404.0,5.35]
[1738342960629,0.55,3404.6,3404.0,5.35]
[1738342960839,0.55,3404.4,3404.0,5.35]
[1738342961142,3.48742,3404.4,3403.4,8.76]
[1738342961349,3.48742,3404.4,3402.0,3.07079426]
[1738342961350,0.55,3403.9,3402.2,14.11]
[1738342961569,0.7586,3403.8,3402.2,14.11]
[1738342961769,0.55,3403.7,3402.2,14.11]
[1738342962080,0.55,3403.7,3402.3,8.76]
[1738342962249,0.55,3403.7,3402.4,1.5285668]
[1738342962766,0.55,3403.7,3402.4,4.5285668]
[1738342962961,0.55,3403.7,3402.4,1.5285668]
[1738342963637,0.55,3403.7,3402.5,0.01469343]
[1738342964307,0.55,3403.7,3402.4,4.5285668]
[1738342964448,0.55,3403.7,3402.5,4.98142348]
[1738342964649,0.55,3403.7,3402.5,1.98142348]
[1738342966289,0.55,3403.7,3402.7,3.0]
[1738342967547,0.55,3403.7,3402.7,11.76]
[1738342967750,0.55,3403.7,3402.2,6.525668]
[1738342967751,0.55,3403.2,3402.3,8.76]
[1738342968040,0.55,3403.2,3402.3,10.171]
[1738342968792,0.55,3403.2,3402.4,3.0]
[1738342968971,0.55,3403.2,3402.4,3.01470323]
[1738342969694,0.7677,3403.3,3402.4,3.01470323]
[1738342970185,0.7966,3403.8,3402.4,3.01470323]
[1738342970386,0.7966,3403.8,3402.5,1.85357032]
[1738342970586,2.9373,3404.5,3402.6,0.0146918]
[1738342970888,2.93746,3404.3,3402.8,3.0]
[1738342971093,0.7654,3404.4,3402.8,3.0]
[1738342971278,1.13567,3404.4,3403.0,3.0]
[1738342971475,0.55,3404.3,3403.0,3.0]
[1738342971667,3.48749,3404.3,3403.0,3.0]
[1738342972057,0.55,3404.3,3403.0,3.0]
[1738342974500,0.55,3404.3,3403.0,11.76]
[1738342974707,0.55,3404.3,3403.1,1.3471]
[1738342975790,0.55,3404.0,3403.1,1.3471]
[1738342975991,0.7654,3404.4,3403.1,1.3471]
[1738342976186,3.70278,3404.4,3403.1,1.3471]
[1738342976532,0.55,3403.9,3403.0,11.76]
[1738342976729,0.55,3403.7,3403.0,8.76]
[1738342977028,3.488,3403.7,3402.8,8.76]
[1738342977186,0.55,3403.7,3402.9,3.0]
[1738342977388,0.55,3403.5,3402.0,14.11]
[1738342977608,0.55,3403.5,3402.2,3.0]
[1738342977882,0.55,3403.5,3402.1,8.76]
[1738342978300,0.55,3403.5,3402.2,3.0]
[1738342978587,0.55,3403.4,3402.3,1.711]
[1738342978920,0.55,3403.2,3402.3,10.471]
[1738342979283,0.55,3403.2,3402.4,3.0]
[1738342980804,3.48849,3403.2,3402.4,3.0]
[1738342981021,0.55,3403.0,3402.4,3.0]
[1738342981215,0.55,3402.8,3402.4,3.0]
[1738342984556,0.8141,3402.9,3402.4,3.0]
[1738342984708,0.7557,3403.5,3402.5,0.01470528]
[1738342985049,0.7557,3403.5,3402.5,8.77470528]
[1738342985204,0.55,3403.4,3402.5,8.76]
[1738342985410,3.48825,3403.4,3402.5,8.76]
[1738342985622,2.93846,3403.2,3402.5,8.76]
[1738342985824,0.8146,3403.3,3402.5,8.76]
[1738342986036,0.55,3403.2,3402.5,8.76]
[1738342986519,0.55,3403.0,3402.5,8.76]
[1738342986963,0.55,3402.8,3402.5,8.76]
[1738342987164,0.55,3402.8,3402.2,3.0]
[1738342988673,3.48899,3402.6,3401.6,3.0]
[1738342988833,0.0075,3403.1,3401.6,8.76]
[1738342988834,3.48911,3402.4,3401.6,8.76]
[1738342989625,0.55,3402.2,3401.6,8.76]
[1738342990361,0.55,3402.2,3401.0,3.0]
[1738342990362,1.3385,3402.1,3401.0,3.0]
[1738342990525,1.3385,3402.1,3401.0,8.76]
[1738342990740,1.3385,3402.1,3401.1,0.876]
[1738342991038,1.3385,3402.1,3401.1,9.636]
[1738342991563,1.3385,3402.1,3401.2,3.0]
[1738342992278,0.55,3401.9,3401.1,8.76]
[1738342993779,0.55,3401.7,3401.1,8.76]
[1738342996079,0.55,3401.7,3401.0,3.0]
[1738342998359,0.7739,3401.8,3400.4,8.76]
[1738342998360,1.3114,3401.4,3400.4,8.76]
[1738342998601,0.55,3401.0,3399.0,14.11]
[1738342998800,0.55,3401.0,3399.5,1.176631]
[1738342998801,3.4907,3400.6,3399.5,1.176631]
[1738342998958,0.55,3400.4,3399.5,1.176631]
[1738343001415,0.55,3400.4,3399.1,10.201669]
[1738343001611,0.7819,3400.1,3399.2,3.0]
[1738343001761,0.7819,3400.1,3399.2,8.77477139]
[1738343001977,0.7819,3400.1,3399.2,8.76]
[1738343002177,0.7819,3400.1,3399.3,3.0]
[1738343002871,0.7819,3400.1,3399.3,3.0147708]
[1738343003075,0.7819,3400.1,3399.3,4.87141478]
[1738343003402,0.7707,3400.7,3399.3,4.85664398]
[1738343003590,2.94072,3400.6,3399.5,3.0]
[1738343003917,0.55,3400.3,3399.5,3.0]
[1738343004276,0.7707,3400.4,3399.5,3.01476843]
[1738343004478,0.755,3401.0,3399.5,3.01476843]
[1738343004689,0.55,3400.9,3399.5,3.0]
[1738343004914,0.55,3400.7,3399.6,1.3616644]
[1738343005114,0.55,3400.5,3399.6,1.3616644]
[1738343005326,0.55,3400.5,3399.7,0.01476644]
[1738343005651,0.55,3400.5,3399.6,1.3616644]
[1738343005820,0.755,3400.6,3399.7,1.32692883]
[1738343005974,0.755,3400.6,3399.7,1.31216644]
[1738343006677,0.755,3400.6,3399.8,0.01475959]
[1738343007192,0.755,3400.6,3399.7,1.31216644]
[1738343007881,0.755,3400.6,3399.9,3.0]
[1738343008077,0.755,3400.6,3400.0,1.84221664]
[1738343008318,0.755,3400.6,3400.1,3.0]
[1738343008877,0.7533,3400.9,3400.1,3.0]
[1738343009216,0.7533,3400.9,3400.0,8.76]
[1738343009217,0.55,3400.5,3400.0,8.76]
[1738343009940,0.97792,3400.5,3400.0,8.76]
[1738343010224,0.7533,3400.2,3400.0,8.76]
[1738343010931,0.7533,3400.2,3218.4,0.19686601]
[1738343010932,0.55,3400.1,3398.9,8.76]
[1738343011134,0.7637,3399.8,3398.9,8.76]
[1738343011431,0.55,3399.7,3398.9,8.76]
[1738343011633,0.55,3399.7,3398.9,10.171]
[1738343012108,0.55,3399.7,3399.0,3.0]
[1738343013746,0.55,3399.5,3399.0,3.0]
[1738343013977,0.753,3399.6,3399.0,3.0]
[1738343015994,0.55,3399.5,3399.0,3.0]
[1738343016660,0.55,3399.3,3399.0,3.0]
[1738343016875,0.55,3399.3,3398.6,5.35]
[1738343016876,0.8278,3399.2,3398.6,5.35]
[1738343017300,0.55,3399.1,3398.4,3.0]
[1738343017492,0.7762,3399.0,3398.4,3.0]
[1738343018087,0.55,3398.9,3398.4,3.0]
[1738343018423,0.55,3398.7,3397.8,8.76]
[1738343018739,0.55,3398.7,3397.9,3.0]
[1738343019427,0.7962,3398.8,3397.9,3.01480616]
[1738343019725,0.7962,3398.8,3398.2,0.02479906]
[1738343019925,0.7962,3398.8,3398.2,0.01]
[1738343020095,0.55,3398.7,3398.2,0.01]
[1738343020681,0.7962,3398.8,3398.2,0.01]
[1738343020912,0.7962,3398.8,3398.4,3.0]
[1738343021112,0.7777,3399.5,3398.5,1.19179341]
[1738343021315,0.7777,3399.5,3398.4,3.0]
[1738343021623,0.7777,3399.5,3398.5,0.01478335]
[1738343022001,0.7777,3399.5,3398.4,3.0]
[1738343022196,0.7777,3399.5,3398.5,0.01478228]
[1738343022402,0.7781,3400.0,3398.7,3.0]
[1738343022723,0.7781,3400.0,3398.9,3.0]
[1738343023488,0.55,3399.9,3398.9,3.0]
[1738343023683,0.8172,3399.6,3398.9,3.0]
[1738343024946,0.8172,3399.6,3398.9,3.01478075]
[1738343025299,0.8172,3399.6,3398.9,3.0]
[1738343025746,0.8172,3399.6,3398.7,5.35]
[1738343025747,0.55,3399.5,3398.7,5.35]
[1738343025910,0.7925,3399.2,3398.7,5.35]
[1738343026327,0.55,3399.1,3398.4,3.0]
[1738343026523,0.8039,3399.0,3398.4,3.0]
[1738343028390,0.8039,3399.0,3398.2,0.01]
[1738343028840,0.8169,3398.8,3398.2,0.01]
[1738343031487,0.7799,3399.6,3398.3,3.0]
[1738343031796,0.7799,3399.6,3398.4,0.01478082]
[1738343032089,2.94093,3400.3,3398.6,3.0]
[1738343032090,0.8233,3400.3,3398.6,3.0]
[1738343032289,0.8233,3400.3,3398.8,3.0]
[1738343032494,0.8233,3400.3,3398.9,0.01477117]
[1738343032803,0.8233,3400.3,3399.1,3.0]
[1738343032996,0.8233,3400.3,3399.2,0.01476277]
[1738343034053,0.201,3401.2,3399.3,0.0075]
[1738343034282,0.8219,3401.1,3399.5,3.0]
[1738343034476,0.8219,3401.1,3399.6,1.71322536]
[1738343034883,0.8219,3401.1,3399.7,0.01475365]
[1738343035395,0.55,3401.0,3399.7,0.01475365]
[1738343035916,0.8219,3401.1,3399.9,3.0]
[1738343036215,0.8219,3401.1,3400.0,0.0075]
[1738343036400,0.8219,3401.1,3400.2,3.0]
[1738343036582,0.7829,3401.6,3400.3,0.01474207]
[1738343037303,0.55,3401.5,3400.2,3.0]
[1738343040598,0.55,3401.5,3400.4,3.0]
[1738343040817,0.55,3401.5,3400.5,2.011]
[1738343041129,0.55,3401.5,3400.6,0.01474066]
[1738343041342,0.55,3401.5,3400.5,2.011]
[1738343042088,0.55,3401.4,3400.5,2.011]
[1738343042294,0.7712,3401.3,3400.4,3.0]
[1738343042489,0.55,3401.2,3400.3,8.76]
[1738343042691,0.7712,3401.3,3400.3,8.76]
[1738343042692,0.787,3401.3,3400.3,8.76]
[1738343043018,0.787,3401.0,3400.3,8.76]
[1738343043188,1.21526575,3401.0,3400.3,8.76]
[1738343043391,0.787,3400.9,3400.3,8.76]
[1738343045288,0.55,3400.8,3400.3,8.76]
[1738343045837,0.787,3400.9,3399.9,1.176685]
[1738343045838,1.3485,3400.5,3399.9,1.176685]
[1738343045995,0.55,3400.3,3399.9,1.176685]
[1738343046396,0.55,3400.3,3399.4,3.0]
[1738343046630,0.55,3400.3,3399.5,1.711]
[1738343047612,0.55,3400.3,3399.5,4.711]
[1738343048112,0.58676398,3400.3,3399.5,1.711]
[1738343048493,0.58676398,3400.3,3399.4,3.7985]
[1738343048699,0.8046,3400.2,3398.5,3.0]
[1738343048910,0.8046,3400.2,3398.7,3.0]
[1738343049241,0.8046,3400.2,3399.1,1.176957]
[1738343049551,1.234151,3400.2,3399.1,1.176957]
[1738343049694,0.55,3399.8,3398.6,8.76]
[1738343049895,0.8102,3399.7,3398.7,1.177034]
[1738343050146,0.55,3399.6,3398.7,9.937034]
[1738343050343,0.55,3399.6,3398.8,3.0]
[1738343051040,0.55,3399.6,3398.8,4.8287034]
[1738343051641,0.8102,3399.7,3398.9,0.0147846]
[1738343051852,0.8102,3399.7,3398.8,4.8287034]
[1738343053398,0.8102,3399.7,3398.9,0.01477469]
[1738343053750,0.8102,3399.7,3399.0,1.47805121]
[1738343055545,0.8102,3399.7,3399.1,3.0]
[1738343055925,0.8102,3399.7,3399.2,0.014778]
[1738343056253,0.8102,3399.7,3399.3,3.0]
[1738343061462,0.8102,3399.7,3399.3,11.76]
[1738343062255,0.8102,3399.7,3399.3,13.08380512]
[1738343064884,0.0075,3400.9,3399.3,13.08380512]
[1738343064885,0.76,3400.2,3399.3,13.08380512]
[1738343065067,0.76,3400.2,3399.5,3.0]
[1738343065271,0.76,3400.2,3399.7,3.0]
[1738343066579,0.55,3400.1,3399.6,8.76]
[1738343066744,0.55,3400.3,3399.6,8.76]
[1738343066940,0.55,3400.1,3399.6,8.76]
[1738343067185,0.55,3399.7,3398.8,8.76]
[1738343067360,0.815,3399.6,3398.9,8.76]
[1738343067562,0.815,3399.6,3399.0,3.0]
[1738343070389,0.815,3399.6,3399.0,4.2575]
[1738343070560,0.815,3399.6,3399.0,3.0]
[1738343070958,0.8166,3400.5,3399.0,3.0]
[1738343071275,0.55,3400.0,3399.2,3.0]
[1738343073046,0.8166,3399.9,3399.2,3.0]
[1738343074450,0.8166,3399.9,3399.2,4.176]
[1738343076195,0.8166,3399.9,3399.2,12.936]
[1738343077380,0.8077,3399.7,3399.2,11.76]
[1738343077597,0.8077,3399.7,3398.8,5.35]
[1738343077598,0.8077,3399.7,3398.9,8.76]
[1738343077899,0.8077,3399.5,3398.9,8.76]
[1738343079275,0.55,3399.4,3398.9,8.76]
[1738343079472,0.8263,3399.2,3398.9,8.76]
[1738343079873,0.8263,3399.2,3398.3,9.5677]
[1738343080052,0.8263,3399.2,3397.8,5.35]
[1738343080053,0.55,3398.9,3397.9,8.76]
[1738343080269,0.55,3398.9,3397.9,9.937302]
[1738343080485,0.777,3398.8,3398.0,3.0]
[1738343080685,0.777,3398.8,3397.9,9.937302]
[1738343080686,0.777,3398.8,3398.1,8.76]
[1738343081289,0.777,3398.8,3398.2,3.01]
[1738343081680,0.777,3398.8,3398.2,11.77]
[1738343083353,0.777,3398.8,3398.2,0.01]
[1738343083553,0.777,3398.8,3398.3,1.177]
[1738343083793,0.777,3398.8,3398.2,0.01]
[1738343084354,0.777,3398.8,3398.2,0.02479929]
[1738343084599,2.94136,3399.8,3398.2,0.02479929]
[1738343084600,0.7813,3399.6,3398.2,0.02479929]
[1738343084783,0.7813,3399.6,3398.2,0.01]
[1738343085186,0.55,3399.5,3398.2,0.01]
[1738343085386,1.21366844,3399.4,3398.3,1.177]
[1738343085599,0.7813,3399.4,3398.3,1.177]
[1738343086200,0.55,3399.0,3398.2,0.01]
[1738343086503,0.55,3398.3,3398.2,0.01]
[1738343086658,1.3618,3398.3,3398.2,0.01]
[1738343086994,4.51294,3398.3,3398.2,0.01]
[1738343087209,0.55,3397.3,3397.1,0.005]
[1738343087369,0.34935,3397.2,3397.1,0.005]
[1738343087550,1.16115,3397.2,3397.1,1.182699]
[1738343087751,1.16115,3397.2,3397.1,0.005]
[1738343087752,4.66225,3397.2,3397.1,0.005]
[1738343087951,1.71115,3397.2,3397.1,0.005]
[1738343088179,1.3618,3397.2,3397.1,0.005]
[1738343088960,0.8118,3397.2,3397.1,0.005]
[1738343090600,1.3618,3397.2,3397.1,0.005]
[1738343090802,0.8118,3397.2,3397.1,0.005]
[1738343091670,1.3618,3397.2,3397.1,0.005]
[1738343091872,4.77273802,3397.2,3397.1,0.005]
[1738343092101,4.735937,3397.2,3397.1,0.005]
[1738343092313,4.77273806,3397.2,3397.1,0.005]
[1738343092828,4.735937,3397.2,3397.1,0.005]
[1738343092979,1.792337,3397.2,3397.1,0.005]
[1738343093179,4.735937,3397.2,3397.1,0.005]
[1738343094173,4.78023808,3397.2,3397.1,0.005]
[1738343094617,2.94407,3396.7,3395.8,15.288088]
[1738343094802,0.55,3396.5,3395.5,8.76]
[1738343095113,0.55,3396.5,3395.6,3.134757]
[1738343095318,2.94448,3396.2,3395.6,0.134757]
[1738343095486,1.161298,3396.1,3395.6,0.134757]
[1738343095686,0.8111,3396.1,3395.6,0.134757]
[1738343097240,0.55,3396.0,3395.6,0.134757]
[1738343097459,0.8202,3395.9,3395.6,0.134757]
[1738343097656,0.58681319,3395.8,3395.6,0.134757]
[1738343097944,1.376,3395.7,3395.6,0.134757]
[1738343103693,0.8119,3395.9,3395.6,0.134757]
[1738343103894,0.55,3395.8,3395.6,0.17784264]
[1738343104185,0.55,3395.8,3395.6,0.134757]
[1738343104787,4.2606,3395.7,3395.6,0.134757]
[1738343105085,5.07662747,3395.7,3395.6,0.134757]
[1738343105295,2.94534,3395.2,3394.5,0.134757]
[1738343105457,0.55,3394.9,3394.0,0.27238277]
[1738343105649,0.55,3394.9,3394.1,0.1498]
[1738343106573,0.70758,3394.9,3394.1,0.1498]
[1738343106773,0.55,3394.7,3394.0,0.27238277]
[1738343107244,0.55,3394.7,3393.8,0.1498]
[1738343107443,0.15758,3394.9,3393.8,0.1498]
[1738343107872,0.55,3394.8,3393.8,0.1498]
[1738343108093,0.7576,3395.6,3394.0,0.1498]
[1738343108446,0.201,3395.5,3394.2,0.1498]
[1738343108784,0.58306581,3395.2,3394.2,0.1498]
[1738343108940,0.8255,3395.1,3394.2,0.1498]
[1738343109141,0.8255,3395.1,3394.1,3.0]
[1738343109142,0.55,3395.0,3394.1,3.0]
[1738343109390,3.49556,3395.0,3394.1,3.0]
[1738343109694,0.8255,3394.9,3394.1,3.0]
[1738343110560,0.8255,3394.9,3394.0,14.11]
[1738343110745,0.55,3394.8,3394.0,14.11]
[1738343110940,0.55,3394.8,3393.6,1.328545]
[1738343110941,0.49078573,3394.7,3393.6,1.328545]
[1738343111440,0.8255,3394.9,3393.6,1.328545]
[1738343112371,0.8255,3394.9,3393.8,0.1498]
[1738343112588,0.55,3394.8,3393.8,0.1498]
[1738343113560,0.8255,3394.9,3393.8,0.1498]
[1738343113776,0.927101,3394.8,3393.8,0.1498]
[1738343113974,0.96392791,3394.8,3393.8,0.1498]
[1738343114286,0.927101,3394.8,3393.8,0.1498]
[1738343114794,0.96392792,3394.8,3393.8,0.1498]
[1738343114999,0.55,3394.8,3393.8,0.1498]
[1738343115206,0.58682692,3394.8,3393.8,0.1498]
[1738343115408,0.55,3394.8,3393.8,0.1498]
[1738343115564,0.55,3394.6,3393.9,0.27279509]
[1738343115872,0.55,3394.4,3393.9,0.27279509]
[1738343116661,0.7971,3394.5,3393.9,0.27279509]
[1738343117076,0.7971,3394.5,3394.0,0.32796624]
[1738343117410,0.55,3394.4,3394.0,0.32796624]
[1738343117627,0.03682942,3394.3,3394.0,0.32796624]
[1738343117920,0.55,3394.4,3394.0,0.32796624]
[1738343119220,0.55,3394.4,3394.1,0.27279509]
[1738343119379,0.55,3394.4,3394.1,0.32789846]
[1738343120405,1.0188,3394.8,3394.1,0.32789846]
[1738343120602,0.8178,3395.1,3394.2,0.27279509]
[1738343121320,0.201,3395.5,3394.4,0.1498]
[1738343121472,0.23781846,3395.5,3394.4,0.1498]
[1738343121677,0.55,3395.4,3394.5,0.27279509]
[1738343121878,1.62218215,3395.7,3394.6,0.1498]
[1738343121879,1.32620815,3395.7,3394.6,0.1498]
[1738343122302,0.55,3395.6,3394.6,0.1498]
[1738343122576,1.32620815,3395.7,3394.6,0.1498]
[1738343122922,1.17788682,3395.7,3394.6,0.1498]
[1738343123109,0.55,3395.6,3394.7,0.27279509]
[1738343123422,0.03681615,3395.5,3394.7,0.27279509]
[1738343123580,0.55,3395.6,3394.7,0.27279509]
[1738343124003,0.55,3395.4,3394.7,0.27279509]
[1738343124249,0.55,3395.1,3394.7,0.27279509]
[1738343124415,0.55,3394.9,3394.7,0.27279509]
[1738343125002,0.7688,3394.9,3394.7,0.27279509]
[1738343125253,0.55,3394.8,3394.7,0.27279509]
[1738343125840,1.3735,3394.8,3394.7,0.27279509]
[1738343126221,4.36350711,3394.8,3394.7,0.27279509]
[1738343126434,5.17342359,3394.8,3394.7,0.27279509]
[1738343127119,5.18092359,3394.8,3394.7,0.27279509]
[1738343127562,8.18092359,3394.8,3394.7,0.27279509]
[1738343127732,8.14409648,3394.8,3394.7,0.27279509]
[1738343128459,0.55,3394.1,3393.3,2.84213616]
[1738343128642,0.55,3393.9,3393.3,2.84213616]
[1738343128858,0.55,3393.9,3393.4,0.04857229]
[1738343129062,0.81440965,3394.7,3393.7,3.0]
[1738343129243,0.81440965,3394.7,3393.8,0.4226]
[1738343129452,0.81440965,3394.7,3393.8,0.470935]
[1738343130053,0.55,3394.6,3393.8,0.470935]
[1738343130247,0.5575,3394.7,3393.8,0.470935]
[1738343130452,0.03683035,3394.6,3393.8,0.4226]
[1738343130755,0.7979,3394.5,3393.7,3.0]
[1738343131076,0.0075,3394.3,3393.8,0.048335]
[1738343131276,1.698853,3394.2,3393.8,0.048335]
[1738343131483,1.698853,3394.2,3393.3,3.26473616]
[1738343132084,1.698853,3394.2,3393.4,0.04857229]
[1738343132248,1.698853,3394.2,3393.4,0.07672314]
[1738343132576,2.30130842,3394.2,3393.4,0.07672314]
[1738343132878,0.5575,3393.5,3393.4,0.07672314]
[1738343133172,0.5575,3393.5,3392.4,2.84213616]
[1738343133173,0.59434405,3393.5,3392.4,2.84213616]
[1738343133376,0.55,3393.3,3392.4,2.84213616]
[1738343133692,0.55,3393.3,3392.3,0.4226]
[1738343133693,0.55,3392.9,3392.5,0.0726291]
[1738343133926,0.51926981,3392.8,3392.2,0.1706715]
[1738343134128,0.8046,3392.7,3392.6,0.07257518]
[1738343134285,0.8046,3392.7,3392.2,0.1706715]
[1738343134286,0.55,3392.6,3392.2,0.1706715]
[1738343134624,0.55,3392.6,3392.3,0.07269983]
[1738343134830,0.55,3392.4,3392.3,0.07269983]
[1738343135382,0.55,3392.6,3392.3,0.07269983]
[1738343135583,0.58684889,3392.6,3392.3,0.07269983]
[1738343135902,0.55,3392.4,3392.3,0.07269983]
[1738343136410,0.55,3392.6,3392.3,0.07269983]
[1738343136580,0.74308925,3392.6,3392.3,0.07269983]
[1738343137296,0.7583,3392.5,3392.3,0.07269983]
[1738343137503,0.9593,3392.5,3392.3,0.07269983]
[1738343137819,0.55,3392.4,3392.2,0.1706715]
[1738343138323,0.58685087,3392.4,3392.3,0.07046908]
[1738343138530,0.70461509,3392.4,3392.3,0.07046908]
[1738343138693,0.70461509,3392.4,3392.2,0.1706715]
[1738343138896,0.5575,3392.3,3392.2,0.1706715]
[1738343139132,4.32315,3392.3,3392.2,0.1706715]
[1738343139911,1.3678,3392.3,3392.2,0.1706715]
[1738343140079,1.54014151,3392.3,3392.2,0.1706715]
[1738343140429,1.74114151,3392.3,3392.2,0.1706715]
[1738343142060,1.54014151,3392.3,3392.2,0.1706715]